[Event "*** Titled Tuesday Blitz"]
[Site "Chess.com"]
[Date "2019.01.01"]
[Round "4"]
[White "S2PAc"]
[Black "FightingChess"]
[Result "0-1"]
[WhiteElo "2839"]
[BlackElo "2266"]
[TimeControl "180+2"]
[EndTime "13:53:00 PST"]
[Termination "FightingChess won on time"]

1. d4 {[%clk 0:02:58.4]} 1... d5 {[%clk 0:02:59.5]} 2. g3 {[%clk 0:02:59.8]}
2... Nf6 {[%clk 0:03:00.3]} 3. Bg2 {[%clk 0:03:01.2]} 3... c6 {[%clk 0:03:00.5]}
4. Nf3 {[%clk 0:03:02.5]} 4... Bf5 {[%clk 0:03:00.6]} 5. O-O {[%clk 0:03:04]}
5... Nbd7 {[%clk 0:03:01.7]} 6. c4 {[%clk 0:03:05.4]} 6... e6 {[%clk 0:03:01.1]}
7. Nc3 {[%clk 0:03:06.9]} 7... Be7 {[%clk 0:03:01.1]} 8. h3 {[%clk 0:03:02.6]}
8... O-O {[%clk 0:03:00.5]} 9. g4 {[%clk 0:03:01.3]} 9... Bg6 {[%clk 0:03:00.8]}
10. Qb3 {[%clk 0:03:02.8]} 10... Qb6 {[%clk 0:03:00.1]} 11. c5 {[%clk
0:03:04.3]} 11... Qxb3 {[%clk 0:03:00.6]} 12. axb3 {[%clk 0:03:06.2]} 12... a6
{[%clk 0:03:01]} 13. b4 {[%clk 0:03:06.5]} 13... Ne4 {[%clk 0:03:01.6]} 14. Bf4
{[%clk 0:03:07.7]} 14... f6 {[%clk 0:02:58.2]} 15. Rfd1 {[%clk 0:02:57.5]} 15...
Rae8 {[%clk 0:02:47.6]} 16. e3 {[%clk 0:02:51.5]} 16... Bd8 {[%clk 0:02:46.3]}
17. Nxe4 {[%clk 0:02:50.1]} 17... Bxe4 {[%clk 0:02:46.8]} 18. Bd6 {[%clk
0:02:51.6]} 18... Be7 {[%clk 0:02:41.6]} 19. Bxe7 {[%clk 0:02:50.8]} 19... Rxe7
{[%clk 0:02:42.6]} 20. Nd2 {[%clk 0:02:52.7]} 20... Bxg2 {[%clk 0:02:41.7]} 21.
Kxg2 {[%clk 0:02:54.6]} 21... e5 {[%clk 0:02:43.3]} 22. Nb3 {[%clk 0:02:55.6]}
22... Rfe8 {[%clk 0:02:41.9]} 23. Na5 {[%clk 0:02:55.1]} 23... Nf8 {[%clk
0:02:41.9]} 24. dxe5 {[%clk 0:02:53.7]} 24... fxe5 {[%clk 0:02:42.3]} 25. Ra3
{[%clk 0:02:48.3]} 25... e4 {[%clk 0:02:41.6]} 26. Nb3 {[%clk 0:02:48]} 26...
Ng6 {[%clk 0:02:35.4]} 27. Nd4 {[%clk 0:02:45.9]} 27... Ne5 {[%clk 0:02:31.7]}
28. Nf5 {[%clk 0:02:46.5]} 28... Rd7 {[%clk 0:02:31.8]} 29. Nd6 {[%clk
0:02:43.1]} 29... Rf8 {[%clk 0:02:27.7]} 30. Rc3 {[%clk 0:02:02.4]} 30... g6
{[%clk 0:02:24.4]} 31. Rd4 {[%clk 0:01:58.3]} 31... h5 {[%clk 0:02:17.2]} 32.
gxh5 {[%clk 0:01:51.9]} 32... gxh5 {[%clk 0:02:17.8]} 33. Rc1 {[%clk 0:01:53]}
33... Rg7+ {[%clk 0:02:17.5]} 34. Kh1 {[%clk 0:01:53.3]} 34... Rxf2 {[%clk
0:02:16.7]} 0-1

[Event "*** Titled Tuesday Blitz"]
[Site "Chess.com"]
[Date "2019.01.01"]
[Round "4"]
[White "Matibar"]
[Black "attack2mateU"]
[Result "1-0"]
[WhiteElo "2802"]
[BlackElo "2615"]
[TimeControl "180+2"]
[EndTime "13:53:04 PST"]
[Termination "Matibar won by resignation"]

1. e4 {[%clk 0:02:55.9]} 1... c5 {[%clk 0:02:59.3]} 2. Nf3 {[%clk 0:02:55.8]}
2... d6 {[%clk 0:03:00.3]} 3. c3 {[%clk 0:02:54.3]} 3... Nf6 {[%clk 0:03:01]} 4.
Bd3 {[%clk 0:02:50.1]} 4... Nc6 {[%clk 0:02:59.1]} 5. Bc2 {[%clk 0:02:50.4]}
5... Bg4 {[%clk 0:02:57]} 6. d3 {[%clk 0:02:51.6]} 6... e6 {[%clk 0:02:57]} 7.
Nbd2 {[%clk 0:02:53.1]} 7... Be7 {[%clk 0:02:57.5]} 8. h3 {[%clk 0:02:53]} 8...
Bh5 {[%clk 0:02:58.2]} 9. Qe2 {[%clk 0:02:49.9]} 9... O-O {[%clk 0:02:40.2]} 10.
Nf1 {[%clk 0:02:49.3]} 10... b5 {[%clk 0:02:29.9]} 11. Ng3 {[%clk 0:02:49.7]}
11... Bg6 {[%clk 0:02:30.6]} 12. a3 {[%clk 0:02:48.2]} 12... a5 {[%clk
0:02:30.8]} 13. O-O {[%clk 0:02:40.6]} 13... b4 {[%clk 0:02:30.4]} 14. Ba4
{[%clk 0:02:39.9]} 14... Qc7 {[%clk 0:02:23.1]} 15. Bd2 {[%clk 0:02:38.5]} 15...
bxc3 {[%clk 0:02:09.1]} 16. bxc3 {[%clk 0:02:18.5]} 16... d5 {[%clk 0:02:01.8]}
17. Rfb1 {[%clk 0:02:10.8]} 17... c4 {[%clk 0:01:59.9]} 18. dxc4 {[%clk
0:01:59.7]} 18... dxe4 {[%clk 0:01:59.2]} 19. Bxc6 {[%clk 0:02:00.1]} 19... Qxc6
{[%clk 0:01:15.6]} 20. Ne5 {[%clk 0:02:00.9]} 20... Qa4 {[%clk 0:01:16.6]} 21.
Nxg6 {[%clk 0:02:01.9]} 21... hxg6 {[%clk 0:01:17.7]} 22. Nxe4 {[%clk
0:02:03.2]} 22... Nxe4 {[%clk 0:01:18.3]} 23. Qxe4 {[%clk 0:02:05.1]} 23... Rac8
{[%clk 0:01:19.4]} 24. Qb7 {[%clk 0:01:26.3]} 24... Bf6 {[%clk 0:01:17.3]} 25.
Qb5 {[%clk 0:01:27.8]} 25... Rxc4 {[%clk 0:01:17.2]} 26. Qxa4 {[%clk 0:01:26.2]}
26... Rxa4 {[%clk 0:01:19.1]} 27. Rb3 {[%clk 0:01:26.9]} 27... Rc8 {[%clk
0:01:19.3]} 28. Kf1 {[%clk 0:01:17.5]} 28... Rac4 {[%clk 0:01:07.3]} 29. Rb5
{[%clk 0:01:13.9]} 29... a4 {[%clk 0:00:59.6]} 30. Rb4 {[%clk 0:01:14.3]} 30...
Bxc3 {[%clk 0:00:47.6]} 31. Rxc4 {[%clk 0:01:14.4]} 31... Rxc4 {[%clk
0:00:47.4]} 32. Rc1 {[%clk 0:01:15.9]} 1-0

[Event "*** Titled Tuesday Blitz"]
[Site "Chess.com"]
[Date "2019.01.01"]
[Round "4"]
[White "nurmiTV"]
[Black "Rashad_Zeynalli"]
[Result "1-0"]
[WhiteElo "2614"]
[BlackElo "2422"]
[TimeControl "180+2"]
[EndTime "13:53:14 PST"]
[Termination "nurmiTV won by resignation"]

1. c4 {[%clk 0:03:00.2]} 1... Nf6 {[%clk 0:03:00.2]} 2. g3 {[%clk 0:03:00.5]}
2... g6 {[%clk 0:03:01.5]} 3. Bg2 {[%clk 0:02:59.3]} 3... Bg7 {[%clk 0:03:02.9]}
4. Nc3 {[%clk 0:03:00.9]} 4... O-O {[%clk 0:03:04]} 5. e4 {[%clk 0:03:01.8]}
5... d6 {[%clk 0:03:05.4]} 6. Nge2 {[%clk 0:03:03.1]} 6... e5 {[%clk 0:02:52.5]}
7. O-O {[%clk 0:03:00.3]} 7... Nc6 {[%clk 0:02:53.1]} 8. h3 {[%clk 0:02:58.2]}
8... Nh5 {[%clk 0:02:43.9]} 9. d3 {[%clk 0:02:50.5]} 9... Be6 {[%clk 0:02:41.5]}
10. Kh2 {[%clk 0:02:48.9]} 10... Qd7 {[%clk 0:02:37.9]} 11. f4 {[%clk
0:02:44.6]} 11... exf4 {[%clk 0:02:20.3]} 12. Nxf4 {[%clk 0:02:43.2]} 12... Nxf4
{[%clk 0:02:20.9]} 13. Bxf4 {[%clk 0:02:43.2]} 13... Ne5 {[%clk 0:02:13.3]} 14.
Qd2 {[%clk 0:02:37.1]} 14... c6 {[%clk 0:02:03.6]} 15. b3 {[%clk 0:02:35.4]}
15... b5 {[%clk 0:01:57.4]} 16. d4 {[%clk 0:02:30.5]} 16... Nxc4 {[%clk
0:01:30.6]} 17. bxc4 {[%clk 0:02:30.2]} 17... Bxc4 {[%clk 0:01:32.5]} 18. Rf2
{[%clk 0:02:26.3]} 18... c5 {[%clk 0:01:30]} 19. Be3 {[%clk 0:02:14]} 19... Qc7
{[%clk 0:01:27.3]} 20. Rc1 {[%clk 0:02:09.8]} 20... Rfe8 {[%clk 0:01:08.2]} 21.
dxc5 {[%clk 0:01:49.7]} 21... dxc5 {[%clk 0:01:08]} 22. Nd5 {[%clk 0:01:51.3]}
22... Qd6 {[%clk 0:00:55.7]} 23. Nf6+ {[%clk 0:01:44.9]} 23... Qxf6 {[%clk
0:00:54.4]} 24. Rxf6 {[%clk 0:01:44]} 24... Bxf6 {[%clk 0:00:56.3]} 25. Bxc5
{[%clk 0:01:43.4]} 25... Rad8 {[%clk 0:00:56.2]} 26. Qf2 {[%clk 0:01:42.8]}
26... Bg5 {[%clk 0:00:55.7]} 27. Be3 {[%clk 0:01:39.5]} 27... Be7 {[%clk
0:00:55.5]} 28. Bf1 {[%clk 0:01:34.6]} 28... Rc8 {[%clk 0:00:50.3]} 29. Bxc4
{[%clk 0:01:28.6]} 29... bxc4 {[%clk 0:00:52.2]} 30. Bxa7 {[%clk 0:01:26.6]}
30... c3 {[%clk 0:00:48.5]} 31. Bd4 {[%clk 0:01:26.1]} 31... Bb4 {[%clk
0:00:43.9]} 32. Qf6 {[%clk 0:01:25.6]} 32... Kf8 {[%clk 0:00:45.2]} 33. Bxc3
{[%clk 0:01:15.9]} 1-0

[Event "*** Titled Tuesday Blitz"]
[Site "Chess.com"]
[Date "2019.01.01"]
[Round "4"]
[White "Raffael89"]
[Black "Blagorod"]
[Result "1-0"]
[WhiteElo "2203"]
[BlackElo "2093"]
[TimeControl "180+2"]
[EndTime "13:53:15 PST"]
[Termination "Raffael89 won by resignation"]

1. e4 {[%clk 0:03:01.9]} 1... e5 {[%clk 0:03:00.3]} 2. Nf3 {[%clk 0:03:03.2]}
2... Nf6 {[%clk 0:03:00.4]} 3. Nxe5 {[%clk 0:03:01.8]} 3... d6 {[%clk
0:02:59.7]} 4. Nf3 {[%clk 0:03:02.9]} 4... Nxe4 {[%clk 0:03:01.3]} 5. Qe2 {[%clk
0:03:03.9]} 5... Qe7 {[%clk 0:03:01.2]} 6. d3 {[%clk 0:03:05.3]} 6... Nf6 {[%clk
0:03:02.1]} 7. Bg5 {[%clk 0:03:06.7]} 7... Be6 {[%clk 0:03:03.3]} 8. Nc3 {[%clk
0:03:06.8]} 8... h6 {[%clk 0:03:03.3]} 9. Bh4 {[%clk 0:03:07.2]} 9... g5 {[%clk
0:03:01.3]} 10. Bg3 {[%clk 0:03:07.8]} 10... Nc6 {[%clk 0:02:58]} 11. O-O-O
{[%clk 0:03:04.7]} 11... O-O-O {[%clk 0:02:54.9]} 12. d4 {[%clk 0:03:04.4]}
12... Nd5 {[%clk 0:02:46.6]} 13. Nxd5 {[%clk 0:03:02.2]} 13... Bxd5 {[%clk
0:02:44.4]} 14. Qxe7 {[%clk 0:02:53.4]} 14... Nxe7 {[%clk 0:02:34.8]} 15. c4
{[%clk 0:02:52.3]} 15... Bxf3 {[%clk 0:02:30.1]} 16. gxf3 {[%clk 0:02:54.2]}
16... f5 {[%clk 0:02:28.8]} 17. f4 {[%clk 0:02:46.9]} 17... g4 {[%clk
0:02:29.3]} 18. h3 {[%clk 0:02:48.2]} 18... Bg7 {[%clk 0:02:20.7]} 19. d5 {[%clk
0:02:41.3]} 19... h5 {[%clk 0:02:13]} 20. hxg4 {[%clk 0:02:39.9]} 20... hxg4
{[%clk 0:02:12.2]} 21. Bd3 {[%clk 0:02:39.5]} 21... Kd7 {[%clk 0:01:53.4]} 22.
Bh4 {[%clk 0:02:32.4]} 22... Rdf8 {[%clk 0:01:53.9]} 23. Rde1 {[%clk 0:02:26.8]}
23... Ng6 {[%clk 0:01:47.4]} 24. Bg5 {[%clk 0:02:25.6]} 24... Rxh1 {[%clk
0:01:35.1]} 25. Rxh1 {[%clk 0:02:27.5]} 25... Bd4 {[%clk 0:01:33.7]} 26. Rh6
{[%clk 0:02:04.3]} 26... Nh8 {[%clk 0:01:24.5]} 27. Bh4 {[%clk 0:01:55.4]} 27...
c6 {[%clk 0:01:10]} 28. Rh7+ {[%clk 0:01:49.7]} 28... Kc8 {[%clk 0:00:57.7]} 29.
b3 {[%clk 0:01:49]} 29... Ng6 {[%clk 0:00:50.7]} 30. Bg3 {[%clk 0:01:45]} 30...
a5 {[%clk 0:00:26.8]} 31. Rh6 {[%clk 0:01:43.8]} 31... Rf6 {[%clk 0:00:27.1]}
32. Rxg6 {[%clk 0:01:45.1]} 32... Rxg6 {[%clk 0:00:24.9]} 33. Bxf5+ {[%clk
0:01:46.5]} 33... Kd8 {[%clk 0:00:24.4]} 34. Bxg6 {[%clk 0:01:47.7]} 34... cxd5
{[%clk 0:00:25.1]} 35. cxd5 {[%clk 0:01:48.2]} 35... Ke7 {[%clk 0:00:26.5]} 36.
Bf5 {[%clk 0:01:49.1]} 1-0

[Event "*** Titled Tuesday Blitz"]
[Site "Chess.com"]
[Date "2019.01.01"]
[Round "4"]
[White "jcibarra"]
[Black "vovachesss"]
[Result "1-0"]
[WhiteElo "2733"]
[BlackElo "2492"]
[TimeControl "180+2"]
[EndTime "13:53:18 PST"]
[Termination "jcibarra won on time"]

1. e4 {[%clk 0:03:01.9]} 1... c6 {[%clk 0:02:57.5]} 2. Nc3 {[%clk 0:02:59]} 2...
d5 {[%clk 0:02:58.3]} 3. Qe2 {[%clk 0:03:00.6]} 3... dxe4 {[%clk 0:02:59.1]} 4.
Nxe4 {[%clk 0:03:01.2]} 4... Nf6 {[%clk 0:03:00.3]} 5. d3 {[%clk 0:02:56.8]}
5... Nxe4 {[%clk 0:03:00.5]} 6. dxe4 {[%clk 0:02:57.7]} 6... e5 {[%clk
0:03:01.4]} 7. Nf3 {[%clk 0:02:57.7]} 7... Bd6 {[%clk 0:02:58.5]} 8. Bd2 {[%clk
0:02:57.4]} 8... Qe7 {[%clk 0:02:56.9]} 9. O-O-O {[%clk 0:02:58.2]} 9... O-O
{[%clk 0:02:57]} 10. g4 {[%clk 0:02:54.6]} 10... Be6 {[%clk 0:02:47.6]} 11. Kb1
{[%clk 0:02:52.7]} 11... a5 {[%clk 0:02:41]} 12. h4 {[%clk 0:02:51.3]} 12... b5
{[%clk 0:02:39.2]} 13. g5 {[%clk 0:02:50.6]} 13... a4 {[%clk 0:02:32.8]} 14. Bh3
{[%clk 0:02:51.2]} 14... Bc4 {[%clk 0:02:24.3]} 15. Qe1 {[%clk 0:02:51.8]} 15...
b4 {[%clk 0:02:24.7]} 16. Bc1 {[%clk 0:02:28.6]} 16... b3 {[%clk 0:02:25.2]} 17.
Qc3 {[%clk 0:02:29.5]} 17... Be2 {[%clk 0:01:57.8]} 18. Rdg1 {[%clk 0:02:24.6]}
18... Bb4 {[%clk 0:01:50.6]} 19. Qe3 {[%clk 0:02:23.6]} 19... bxc2+ {[%clk
0:01:51.2]} 20. Kxc2 {[%clk 0:02:21]} 20... Bc4 {[%clk 0:01:39.3]} 21. a3 {[%clk
0:02:18]} 21... Bc5 {[%clk 0:01:35.4]} 22. Qc3 {[%clk 0:02:18.9]} 22... Bb3+
{[%clk 0:01:35.8]} 23. Kb1 {[%clk 0:02:19.7]} 23... Na6 {[%clk 0:01:10.9]} 24.
Nxe5 {[%clk 0:02:15.3]} 24... Bxf2 {[%clk 0:01:02.9]} 25. Rf1 {[%clk 0:02:02.6]}
25... Bb6 {[%clk 0:00:43.7]} 26. Bf5 {[%clk 0:01:50.2]} 26... Rad8 {[%clk
0:00:36]} 27. Nxc6 {[%clk 0:01:49.1]} 27... Qb7 {[%clk 0:00:27.2]} 28. Nxd8
{[%clk 0:01:40.6]} 28... Rxd8 {[%clk 0:00:29.1]} 29. h5 {[%clk 0:01:41.6]} 29...
Nc5 {[%clk 0:00:24.9]} 30. h6 {[%clk 0:01:41.7]} 30... f6 {[%clk 0:00:14.9]} 31.
Bxh7+ {[%clk 0:01:41.5]} 1-0

[Event "*** Titled Tuesday Blitz"]
[Site "Chess.com"]
[Date "2019.01.01"]
[Round "4"]
[White "pultineviciuspaulius"]
[Black "biostatistician"]
[Result "1-0"]
[WhiteElo "2608"]
[BlackElo "2459"]
[TimeControl "180+2"]
[EndTime "13:53:27 PST"]
[Termination "pultineviciuspaulius won on time"]

1. d4 {[%clk 0:03:01.9]} 1... Nf6 {[%clk 0:03:00.4]} 2. Nf3 {[%clk 0:03:02.7]}
2... g6 {[%clk 0:03:01.7]} 3. Bf4 {[%clk 0:03:04]} 3... Bg7 {[%clk 0:03:02.5]}
4. Nbd2 {[%clk 0:03:05]} 4... O-O {[%clk 0:03:04.4]} 5. e3 {[%clk 0:03:02.9]}
5... b6 {[%clk 0:03:03.1]} 6. h3 {[%clk 0:03:02.7]} 6... Bb7 {[%clk 0:03:04.1]}
7. Bd3 {[%clk 0:03:04.2]} 7... c5 {[%clk 0:03:05.3]} 8. c3 {[%clk 0:03:04.3]}
8... d6 {[%clk 0:03:04.1]} 9. O-O {[%clk 0:03:00.5]} 9... Qc7 {[%clk 0:03:03.6]}
10. Qe2 {[%clk 0:03:00.6]} 10... Nbd7 {[%clk 0:02:51.9]} 11. a4 {[%clk
0:02:57.5]} 11... Rfe8 {[%clk 0:02:49.2]} 12. a5 {[%clk 0:02:55.8]} 12... e5
{[%clk 0:02:49.7]} 13. dxe5 {[%clk 0:02:57.5]} 13... dxe5 {[%clk 0:02:50.2]} 14.
Bh2 {[%clk 0:02:59]} 14... Qd8 {[%clk 0:02:07.6]} 15. Bc4 {[%clk 0:02:55.3]}
15... Qe7 {[%clk 0:01:57.7]} 16. Rfd1 {[%clk 0:02:51.6]} 16... h6 {[%clk
0:01:47.6]} 17. Bb5 {[%clk 0:02:47.7]} 17... e4 {[%clk 0:01:37.3]} 18. Ne1
{[%clk 0:02:48.6]} 18... Red8 {[%clk 0:01:36.2]} 19. Nc4 {[%clk 0:02:48.4]}
19... Nf8 {[%clk 0:01:19.1]} 20. axb6 {[%clk 0:02:31.6]} 20... axb6 {[%clk
0:01:18.4]} 21. Nxb6 {[%clk 0:02:31.4]} 21... Rxa1 {[%clk 0:01:18]} 22. Rxa1
{[%clk 0:02:31.1]} 22... Qe6 {[%clk 0:00:32.6]} 23. Bc7 {[%clk 0:02:19.9]} 23...
Rd3 {[%clk 0:00:22.8]} 24. Nxd3 {[%clk 0:02:14.9]} 24... exd3 {[%clk 0:00:23.5]}
25. Qxd3 {[%clk 0:02:16.8]} 25... Ne8 {[%clk 0:00:19.6]} 26. Bxe8 {[%clk
0:02:13.1]} 26... Qxe8 {[%clk 0:00:21.5]} 27. f3 {[%clk 0:01:58.1]} 27... Qc6
{[%clk 0:00:21.2]} 28. Bd8 {[%clk 0:01:58.8]} 28... Ne6 {[%clk 0:00:21.3]} 29.
Rd1 {[%clk 0:01:56.9]} 29... Kh7 {[%clk 0:00:21.7]} 30. Qd7 {[%clk 0:01:52.7]}
30... Nxd8 {[%clk 0:00:19.9]} 31. Qxd8 {[%clk 0:01:54.6]} 31... Be5 {[%clk
0:00:15.1]} 32. Qe7 {[%clk 0:01:47.9]} 32... Qxb6 {[%clk 0:00:09.6]} 33. Qxf7+
{[%clk 0:01:44.7]} 33... Bg7 {[%clk 0:00:09.7]} 34. Rd7 {[%clk 0:01:46.1]} 1-0

[Event "*** Titled Tuesday Blitz"]
[Site "Chess.com"]
[Date "2019.01.01"]
[Round "4"]
[White "Anahita_Gholami"]
[Black "kacprekt"]
[Result "1-0"]
[WhiteElo "2697"]
[BlackElo "2379"]
[TimeControl "180+2"]
[EndTime "13:53:36 PST"]
[Termination "Anahita_Gholami won by checkmate"]

1. d4 {[%clk 0:03:01]} 1... Nf6 {[%clk 0:03:00.4]} 2. c4 {[%clk 0:03:01.6]} 2...
g6 {[%clk 0:03:01.6]} 3. Nc3 {[%clk 0:03:00.3]} 3... d5 {[%clk 0:03:03]} 4. cxd5
{[%clk 0:03:00.3]} 4... Nxd5 {[%clk 0:03:04.9]} 5. Bd2 {[%clk 0:03:01]} 5... Bg7
{[%clk 0:03:05]} 6. e4 {[%clk 0:03:01.5]} 6... Nxc3 {[%clk 0:03:05.5]} 7. Bxc3
{[%clk 0:03:03.4]} 7... Nc6 {[%clk 0:03:06.9]} 8. d5 {[%clk 0:03:02.4]} 8...
Bxc3+ {[%clk 0:03:06.2]} 9. bxc3 {[%clk 0:03:04.3]} 9... Na5 {[%clk 0:03:03.2]}
10. h4 {[%clk 0:03:01.1]} 10... h5 {[%clk 0:03:03.6]} 11. Qd4 {[%clk 0:03:01.4]}
11... O-O {[%clk 0:03:01.8]} 12. Be2 {[%clk 0:03:00.8]} 12... b6 {[%clk
0:02:52.8]} 13. g4 {[%clk 0:03:01.5]} 13... c5 {[%clk 0:02:45.6]} 14. Qe3 {[%clk
0:02:59.4]} 14... Bxg4 {[%clk 0:02:17.4]} 15. Bxg4 {[%clk 0:02:58.3]} 15... hxg4
{[%clk 0:02:19.3]} 16. h5 {[%clk 0:02:59.7]} 16... Kg7 {[%clk 0:02:05.1]} 17.
hxg6 {[%clk 0:02:59.7]} 17... Rh8 {[%clk 0:02:05.2]} 18. Rxh8 {[%clk 0:03:00.4]}
18... Qxh8 {[%clk 0:02:05]} 19. gxf7 {[%clk 0:03:01.1]} 19... Kxf7 {[%clk
0:02:01.8]} 20. O-O-O {[%clk 0:03:01.3]} 20... Nc4 {[%clk 0:01:59.8]} 21. Qf4+
{[%clk 0:03:01.4]} 21... Qf6 {[%clk 0:02:00.3]} 22. Ne2 {[%clk 0:02:56]} 22...
Qxf4+ {[%clk 0:01:50.4]} 23. Nxf4 {[%clk 0:02:57.9]} 23... Kf6 {[%clk
0:01:51.1]} 24. Nd3 {[%clk 0:02:57]} 24... Rg8 {[%clk 0:01:44.8]} 25. Rg1 {[%clk
0:02:55.3]} 25... Ne5 {[%clk 0:01:43.6]} 26. Kc2 {[%clk 0:02:54]} 26... Nxd3
{[%clk 0:01:37.4]} 27. Kxd3 {[%clk 0:02:55.9]} 27... Ke5 {[%clk 0:01:38.7]} 28.
Ke3 {[%clk 0:02:56.5]} 28... b5 {[%clk 0:01:10.3]} 29. Rg3 {[%clk 0:02:22.5]}
29... b4 {[%clk 0:00:51.6]} 30. f4+ {[%clk 0:02:15.7]} 30... Kd6 {[%clk
0:00:52]} 31. c4 {[%clk 0:02:13.7]} 31... Rh8 {[%clk 0:00:49]} 32. e5+ {[%clk
0:02:13.9]} 32... Kd7 {[%clk 0:00:49.2]} 33. Rxg4 {[%clk 0:02:14.8]} 33... Rh3+
{[%clk 0:00:49.8]} 34. Ke4 {[%clk 0:02:14.3]} 34... Rh2 {[%clk 0:00:50]} 35. Rg7
{[%clk 0:02:15]} 35... Rxa2 {[%clk 0:00:47.4]} 36. d6 {[%clk 0:02:16.4]} 36...
b3 {[%clk 0:00:38.1]} 37. Rxe7+ {[%clk 0:02:16.8]} 37... Kd8 {[%clk 0:00:39.5]}
38. Rb7 {[%clk 0:02:17.4]} 38... b2 {[%clk 0:00:12.2]} 39. Kd5 {[%clk
0:02:17.5]} 39... Kc8 {[%clk 0:00:09.2]} 40. Rb3 {[%clk 0:02:16.8]} 40... a5
{[%clk 0:00:08.2]} 41. Kc6 {[%clk 0:02:17.8]} 41... a4 {[%clk 0:00:08]} 42. d7+
{[%clk 0:02:19.7]} 42... Kd8 {[%clk 0:00:07.1]} 43. Rb8+ {[%clk 0:02:21.6]}
43... Ke7 {[%clk 0:00:08.4]} 44. d8=Q+ {[%clk 0:02:23.5]} 44... Ke6 {[%clk
0:00:09.8]} 45. Qf6# {[%clk 0:02:22.2]} 1-0

[Event "*** Titled Tuesday Blitz"]
[Site "Chess.com"]
[Date "2019.01.01"]
[Round "4"]
[White "x-3738459472"]
[Black "michaelq2d5"]
[Result "1-0"]
[WhiteElo "2537"]
[BlackElo "2741"]
[TimeControl "180+2"]
[EndTime "13:53:39 PST"]
[Termination "x-3738459472 won by resignation"]

1. e4 {[%clk 0:03:01.9]} 1... e5 {[%clk 0:02:58.4]} 2. Nf3 {[%clk 0:03:02]} 2...
Nc6 {[%clk 0:02:59.3]} 3. Bb5 {[%clk 0:03:03.5]} 3... a6 {[%clk 0:03:00.7]} 4.
Ba4 {[%clk 0:03:04.2]} 4... Nf6 {[%clk 0:03:02.3]} 5. O-O {[%clk 0:03:04.8]}
5... Be7 {[%clk 0:03:04]} 6. Re1 {[%clk 0:03:05.3]} 6... b5 {[%clk 0:03:05.4]}
7. Bb3 {[%clk 0:03:06.1]} 7... d6 {[%clk 0:03:07.1]} 8. c3 {[%clk 0:03:06.7]}
8... O-O {[%clk 0:03:08.3]} 9. h3 {[%clk 0:03:08]} 9... Na5 {[%clk 0:03:09.9]}
10. Bc2 {[%clk 0:03:08.6]} 10... c5 {[%clk 0:03:11.5]} 11. d3 {[%clk 0:03:06.8]}
11... Qc7 {[%clk 0:03:13]} 12. Nbd2 {[%clk 0:03:07.7]} 12... Nc6 {[%clk
0:03:14.7]} 13. Nf1 {[%clk 0:03:08.8]} 13... h6 {[%clk 0:03:16.2]} 14. Ng3
{[%clk 0:03:09.7]} 14... Be6 {[%clk 0:03:17.9]} 15. Be3 {[%clk 0:03:08.2]} 15...
d5 {[%clk 0:03:19.1]} 16. Qc1 {[%clk 0:03:08.4]} 16... Kh7 {[%clk 0:03:13.4]}
17. exd5 {[%clk 0:03:05.4]} 17... Nxd5 {[%clk 0:03:14.6]} 18. d4+ {[%clk
0:03:05.4]} 18... f5 {[%clk 0:03:14.7]} 19. Nxe5 {[%clk 0:02:52.9]} 19... Nxe5
{[%clk 0:03:14.2]} 20. dxe5 {[%clk 0:02:54.8]} 20... Nxe3 {[%clk 0:03:14.8]} 21.
Qxe3 {[%clk 0:02:54.4]} 21... g6 {[%clk 0:03:16.2]} 22. Ne2 {[%clk 0:02:51.5]}
22... Bg5 {[%clk 0:03:12.6]} 23. Nf4 {[%clk 0:02:52.1]} 23... Bg8 {[%clk
0:02:58.7]} 24. Qg3 {[%clk 0:02:47.4]} 24... Rad8 {[%clk 0:02:41.6]} 25. Nxg6
{[%clk 0:02:25.3]} 25... Kxg6 {[%clk 0:02:41.2]} 26. h4 {[%clk 0:02:25.8]} 26...
Rd2 {[%clk 0:02:40.6]} 27. hxg5 {[%clk 0:02:07.2]} 27... hxg5 {[%clk 0:01:02.4]}
28. Rad1 {[%clk 0:02:05.6]} 28... Rfd8 {[%clk 0:00:59.7]} 29. Bxf5+ {[%clk
0:01:10.2]} 29... Kxf5 {[%clk 0:01:01.6]} 30. Qf3+ {[%clk 0:01:09.6]} 30... Kg6
{[%clk 0:01:00.7]} 31. Qf6+ {[%clk 0:01:07.9]} 31... Kh7 {[%clk 0:01:01.9]} 32.
Rxd2 {[%clk 0:00:41.9]} 32... Rxd2 {[%clk 0:00:59.7]} 33. Qxg5 {[%clk 0:00:43]}
33... Qc8 {[%clk 0:00:50.9]} 34. Qxd2 {[%clk 0:00:42.6]} 1-0